fUSD/lending_fUSD_20260610
["ID","MTS","AMOUNT","RATE_DAILY","PERIOD"]
[424701560,1781063469000,-310.078125,0.00022416,2]
[424701559,1781063469000,-1610.6,0.00022353,2]
[424701563,1781063469000,-194.72792766,0.00022416,2]
[424701562,1781063469000,-200.0,0.00022416,2]
[424701561,1781063469000,-233.5188934,0.00022416,2]
[424701568,1781063469000,-233.5188934,0.00022416,2]
[424701566,1781063469000,-151.0,0.00022416,2]
[424701564,1781063469000,-151.0,0.00022416,2]
[424701565,1781063469000,-200.0,0.00022416,2]
[424701567,1781063469000,-10652.17309792,0.00022416,2]
[424701571,1781063469000,-151.0,0.00022416,2]
[424701570,1781063469000,-233.5188934,0.00022416,2]
[424701572,1781063469000,-377.26,0.00022466,2]
[424701573,1781063469000,-1578.0,0.00022466,2]
[424701527,1781063469000,-317.158611,0.00022,2]
[424701553,1781063469000,-244.48973157,0.0002211,2]
[424701552,1781063469000,-150.0,0.000221,2]
[424701569,1781063469000,-2319.72410669,0.00022416,2]
[424701554,1781063469000,-241.6875,0.00022141,2]
[424701555,1781063469000,-160.0,0.00022141,2]
[424701531,1781063469000,-1366.0,0.00022,2]
[424701526,1781063469000,-877.0,0.00022,2]
[424701529,1781063469000,-3594.0,0.00022,2]
[424701528,1781063469000,-684.0,0.00022,2]
[424701534,1781063469000,-729.0,0.00022,2]
[424701535,1781063469000,-2000.0,0.00022,7]
[424701546,1781063469000,-150.0,0.000221,2]
[424701537,1781063469000,-891.0,0.00022,2]
[424701544,1781063469000,-150.0,0.000221,2]
[424701536,1781063469000,-953.8,0.00022,2]
[424701545,1781063469000,-150.0,0.000221,2]
[424701551,1781063469000,-150.0,0.000221,2]
[424701547,1781063469000,-150.0,0.000221,2]
[424701538,1781063469000,-152.0,0.00022038,12]
[424701543,1781063469000,-150.0,0.000221,2]
[424701549,1781063469000,-150.0,0.000221,2]
[424701542,1781063469000,-150.0,0.000221,2]
[424701540,1781063469000,-528.9170394,0.000221,7]
[424701541,1781063469000,-150.0,0.000221,2]
[424701539,1781063469000,-632.0,0.0002205,2]
[424701610,1781063470000,-800.0,0.00023,2]
[424701601,1781063470000,-2388.6331015,0.00023,2]
[424701600,1781063470000,-4625.144155,0.00023,2]
[424701605,1781063470000,-835.0,0.00023,2]
[424701607,1781063470000,-877.0,0.00023,2]
[424701608,1781063470000,-684.0,0.00023,2]
[424701604,1781063470000,-4559.0,0.00023,2]
[424701606,1781063470000,-2186.0,0.00023,2]
[424701613,1781063470000,-214.318029,0.00023,2]
[424701614,1781063470000,-729.0,0.00023,2]
[424701612,1781063470000,-379.0,0.00023,2]
[424701623,1781063470000,-200.0,0.00023323,2]
[424701611,1781063470000,-1366.0,0.00023,2]
[424701615,1781063470000,-2000.0,0.00023,7]
[424701621,1781063470000,-150.0,0.00023288,2]
[424701618,1781063470000,-152.0,0.00023187,16]
[424701616,1781063470000,-891.0,0.00023,2]
[424701619,1781063470000,-359.44219057,0.000232,2]
[424701622,1781063470000,-342.663873,0.000233,7]
[424701620,1781063470000,-2000.0,0.000232,2]
[424701617,1781063470000,-646.67017079,0.0002305,2]
[424701599,1781063470000,-151.0,0.00022964,2]
[424701609,1781063470000,-3594.0,0.00023,2]
[424701603,1781063470000,-2488.0,0.00023,2]
[424701576,1781063470000,-200.0,0.00022551,2]
[424701602,1781063470000,-714.0,0.00023,2]
[424701578,1781063470000,-3670.02792731,0.000226,2]
[424701575,1781063470000,-36133.28494259,0.000225,2]
[424701624,1781063470000,-700.0,0.00023356,7]
[424701574,1781063470000,-266.65,0.00022466,2]
[424701579,1781063470000,-2000.0,0.000226,2]
[424701580,1781063470000,-168.38,0.00022603,2]
[424701587,1781063470000,-500.0,0.00022947,14]
[424701591,1781063470000,-201.93286098,0.00022964,2]
[424701589,1781063470000,-242.15909246,0.00022964,2]
[424701590,1781063470000,-200.0,0.00022964,2]
[424701588,1781063470000,-310.078125,0.00022964,2]
[424701585,1781063470000,-152.0,0.00022899,15]
[424701584,1781063470000,-249.0,0.00022843,2]
[424701583,1781063470000,-532.72603518,0.0002271,2]
[424701586,1781063470000,-1125.0,0.00022941,2]
[424701581,1781063470000,-152.0,0.00022612,14]
[424701582,1781063470000,-688.76,0.000227,7]
[424701592,1781063470000,-151.0,0.00022964,2]
[424701596,1781063470000,-242.15909246,0.00022964,2]
[424701594,1781063470000,-151.0,0.00022964,2]
[424701595,1781063470000,-1916.86485967,0.00022964,2]
[424701597,1781063470000,-242.15909246,0.00022964,2]
[424701598,1781063470000,-2405.55389863,0.00022964,2]
[424701593,1781063470000,-200.0,0.00022964,2]
[424701625,1781063470000,-500.0,0.00023356,7]
[424701577,1781063470000,-4945.0,0.00022589,2]
[424701631,1781063470000,-1175.10880478,0.000235,2]
[424701654,1781063470000,-150.0,0.0002375,2]
[424701657,1781063470000,-151.92,0.00023908,2]
[424701656,1781063470000,-2000.0,0.000238,2]
[424701659,1781063470000,-4625.144155,0.00024,2]
[424701662,1781063470000,-1258.69277955,0.00024,2]
[424701658,1781063470000,-2000.0,0.00024,7]
[424701661,1781063470000,-3600.0,0.00024,2]
[424701664,1781063470000,-714.0,0.00024,2]
[424701663,1781063470000,-500.0,0.00024,2]
[424701665,1781063470000,-2488.0,0.00024,2]
[424701660,1781063470000,-1040.95752163,0.00024,2]
[424701666,1781063470000,-4559.0,0.00024,2]
[424701669,1781063470000,-877.0,0.00024,2]
[424701672,1781063470000,-800.0,0.00024,2]
[424701671,1781063470000,-3594.0,0.00024,2]
[424701670,1781063470000,-684.0,0.00024,2]
[424701668,1781063470000,-2186.0,0.00024,2]
[424701667,1781063470000,-835.0,0.00024,2]
[424701674,1781063470000,-379.0,0.00024,2]
[424701675,1781063470000,-729.0,0.00024,2]
[424701673,1781063470000,-1366.0,0.00024,2]
[424701677,1781063470000,-2000.0,0.00024034,2]
[424701678,1781063470000,-750.0,0.00024034,2]
[424701655,1781063470000,-152.0,0.00023761,18]
[424701652,1781063470000,-952.53,0.00023654,7]
[424701676,1781063470000,-891.0,0.00024,2]
[424701649,1781063470000,-602.53,0.00023654,7]
[424701650,1781063470000,-878.05,0.00023654,7]
[424701628,1781063470000,-4922.35075038,0.00023398,2]
[424701633,1781063470000,-188.09129994,0.0002351,2]
[424701630,1781063470000,-152.0,0.00023474,17]
[424701634,1781063470000,-225.18697532,0.0002351,2]
[424701626,1781063470000,-500.0,0.00023356,7]
[424701627,1781063470000,-6931.97,0.00023384,7]
[424701632,1781063470000,-241.6875,0.0002351,2]
[424701635,1781063470000,-599.60298507,0.00023511,2]
[424701637,1781063470000,-747.80937859,0.00023511,2]
[424701639,1781063470000,-251.11897888,0.00023512,2]
[424701638,1781063470000,-310.078125,0.00023512,2]
[424701629,1781063470000,-10268.68304949,0.00023398,2]
[424701636,1781063470000,-151.0,0.00023511,2]
[424701640,1781063470000,-200.0,0.00023512,2]
[424701653,1781063470000,-80334.30859483,0.0002375,2]
[424701648,1781063470000,-2494.55939288,0.00023512,2]
[424701645,1781063470000,-251.11897888,0.00023512,2]
[424701646,1781063470000,-251.11897888,0.00023512,2]
[424701651,1781063470000,-565.25,0.00023654,7]
[424701643,1781063470000,-200.0,0.00023512,2]
[424701644,1781063470000,-151.0,0.00023512,2]
[424701642,1781063470000,-151.0,0.00023512,2]
[424701641,1781063470000,-209.40437684,0.00023512,2]
[424701647,1781063470000,-151.0,0.00023512,2]
[424701705,1781063471000,-1610.6,0.00024324,2]
[424701710,1781063471000,-851.71,0.00024364,7]
[424701706,1781063471000,-6594.0,0.00024327,2]
[424701712,1781063471000,-923.96,0.00024364,7]
[424701709,1781063471000,-584.45,0.00024364,7]
[424701711,1781063471000,-548.29,0.00024364,7]
[424701707,1781063471000,-189.0,0.00024327,2]
[424701708,1781063471000,-152.0,0.00024335,20]
[424701714,1781063471000,-700.0,0.00024452,7]
[424701722,1781063471000,-151.0,0.00024608,2]
[424701716,1781063471000,-19300.78608678,0.000245,2]
[424701717,1781063471000,-168.97560549,0.0002455,15]
[424701715,1781063471000,-500.0,0.00024452,7]
[424701704,1781063471000,-3767.05767992,0.0002421,2]
[424701719,1781063471000,-270.0455652,0.00024608,2]
[424701721,1781063471000,-225.18697532,0.00024608,2]
[424701718,1781063471000,-310.078125,0.00024608,2]
[424701720,1781063471000,-200.0,0.00024608,2]
[424701723,1781063471000,-200.0,0.00024608,2]
[424701725,1781063471000,-270.0455652,0.00024608,2]
[424701713,1781063471000,-2000.0,0.000244,2]
[424701701,1781063471000,-330.1,0.0002411,2]
[424701698,1781063471000,-382.0,0.000241,2]
[424701703,1781063471000,-578.12,0.00024137,2]
[424701727,1781063471000,-270.0455652,0.00024608,2]
[424701681,1781063471000,-310.078125,0.0002406,2]
[424701682,1781063471000,-260.4103811,0.0002406,2]
[424701679,1781063471000,-2000.0,0.00024034,2]
[424701680,1781063471000,-152.0,0.00024048,19]
[424701685,1781063471000,-151.0,0.0002406,2]
[424701683,1781063471000,-200.0,0.0002406,2]
[424701684,1781063471000,-217.15233878,0.0002406,2]
[424701687,1781063471000,-151.0,0.0002406,2]
[424701686,1781063471000,-200.0,0.0002406,2]
[424701688,1781063471000,-260.4103811,0.0002406,2]
[424701689,1781063471000,-151.0,0.0002406,2]
[424701690,1781063471000,-260.4103811,0.0002406,2]
[424701691,1781063471000,-2586.85809042,0.0002406,2]
[424701693,1781063471000,-200.0,0.00024095,2]
[424701694,1781063471000,-688.76,0.000241,7]
[424701695,1781063471000,-3556.0,0.000241,2]
[424701699,1781063471000,-933.0,0.000241,2]
[424701697,1781063471000,-1274.0,0.000241,2]
[424701696,1781063471000,-1358.0,0.000241,2]
[424701700,1781063471000,-419.0,0.000241,2]
[424701702,1781063471000,-233.32,0.0002411,2]
[424701692,1781063471000,-947.33293482,0.00024088,2]
[424701726,1781063471000,-2682.57183977,0.00024608,2]
[424701728,1781063471000,-151.0,0.00024608,2]
[424701750,1781063471000,-455.373624,0.00024658,2]
[424701755,1781063471000,-1025.938432,0.00024658,2]
[424701756,1781063471000,-1025.938432,0.00024658,2]
[424701757,1781063471000,-1025.938432,0.00024658,2]
[424701760,1781063471000,-1025.938432,0.00024658,2]
[424701759,1781063471000,-1025.938432,0.00024658,2]
[424701761,1781063471000,-1025.938432,0.00024658,2]
[424701764,1781063471000,-163.944773,0.00024658,2]
[424701758,1781063471000,-1025.938432,0.00024658,2]
[424701762,1781063471000,-1025.938432,0.00024658,2]
[424701767,1781063471000,-163.944773,0.00024658,2]
[424701765,1781063471000,-163.944773,0.00024658,2]
[424701766,1781063471000,-163.944773,0.00024658,2]
[424701768,1781063471000,-163.944773,0.00024658,2]
[424701769,1781063471000,-163.944773,0.00024658,2]
[424701770,1781063471000,-163.944773,0.00024658,2]
[424701771,1781063471000,-163.944773,0.00024658,2]
[424701772,1781063471000,-163.944773,0.00024658,2]
[424701773,1781063471000,-163.944773,0.00024658,2]
[424701774,1781063471000,-163.944773,0.00024658,2]
[424701724,1781063471000,-151.0,0.00024608,2]
[424701747,1781063471000,-455.373624,0.00024658,2]
[424701752,1781063471000,-1025.938432,0.00024658,2]
[424701763,1781063471000,-163.944773,0.00024658,2]
[424701751,1781063471000,-1025.938432,0.00024658,2]
[424701730,1781063471000,-172.3825088,0.0002465,2]
[424701753,1781063471000,-1025.938432,0.00024658,2]
[424701731,1781063471000,-151.0,0.00024654,2]
[424701729,1781063471000,-152.0,0.00024623,21]
[424701733,1781063471000,-151.0,0.00024654,2]
[424701732,1781063471000,-151.0,0.00024654,2]
[424701735,1781063471000,-6016.57,0.00024658,2]
[424701734,1781063471000,-160.05957002,0.00024657,3]
[424701737,1781063471000,-850.49,0.00024658,2]
[424701736,1781063471000,-6016.57,0.00024658,2]
[424701739,1781063471000,-455.373624,0.00024658,2]
[424701738,1781063471000,-1000.0,0.00024658,2]
[424701748,1781063471000,-455.373624,0.00024658,2]
[424701740,1781063471000,-455.373624,0.00024658,2]
[424701741,1781063471000,-455.373624,0.00024658,2]
[424701743,1781063471000,-455.373624,0.00024658,2]
[424701744,1781063471000,-455.373624,0.00024658,2]
[424701745,1781063471000,-455.373624,0.00024658,2]
[424701746,1781063471000,-455.373624,0.00024658,2]
[424701749,1781063471000,-455.373624,0.00024658,2]
[424701742,1781063471000,-455.373624,0.00024658,2]
[424701754,1781063471000,-1025.938432,0.00024658,2]
[424701810,1781063472000,-388.0,0.00024753,2]
[424701811,1781063472000,-386.0,0.00024757,2]
[424701805,1781063472000,-151.0,0.00024717,2]
[424701809,1781063472000,-400.0,0.00024744,2]
[424701799,1781063472000,-169.01,0.00024716,2]
[424701806,1781063472000,-400.0,0.00024727,2]
[424701804,1781063472000,-151.0,0.00024717,2]
[424701798,1781063472000,-151.0,0.00024716,2]
[424701808,1781063472000,-400.0,0.0002474,2]
[424701807,1781063472000,-400.0,0.00024737,2]
[424701812,1781063472000,-212.0,0.0002476,2]
[424701823,1781063472000,-206.0,0.00024815,2]
[424701814,1781063472000,-953.8,0.00024769,7]
[424701816,1781063472000,-400.0,0.0002477,2]
[424701817,1781063472000,-403.0,0.00024772,2]
[424701818,1781063472000,-403.0,0.00024783,2]
[424701820,1781063472000,-405.0,0.00024804,2]
[424701819,1781063472000,-400.0,0.00024792,2]
[424701815,1781063472000,-150.0,0.0002477,2]
[424701824,1781063472000,-405.0,0.00024828,2]
[424701822,1781063472000,-388.0,0.00024813,2]
[424701797,1781063472000,-151.0,0.00024716,2]
[424701813,1781063472000,-220.84226118,0.00024762,2]
[424701796,1781063472000,-1229.0,0.00024704,2]
[424701780,1781063472000,-151.0,0.00024685,2]
[424701800,1781063472000,-151.0,0.00024716,2]
[424701821,1781063472000,-388.0,0.00024807,2]
[424701777,1781063472000,-500.0,0.00024658,2]
[424701781,1781063472000,-151.02,0.00024685,2]
[424701775,1781063472000,-150.0,0.00024658,2]
[424701783,1781063472000,-151.0,0.00024685,2]
[424701784,1781063472000,-151.0,0.00024685,2]
[424701776,1781063472000,-1147.66,0.00024658,2]
[424701779,1781063472000,-151.0,0.00024685,2]
[424701778,1781063472000,-521.2725147,0.00024658,2]
[424701782,1781063472000,-202.25,0.00024685,2]
[424701786,1781063472000,-151.0,0.00024685,2]
[424701790,1781063472000,-151.0,0.00024685,2]
[424701788,1781063472000,-151.0,0.00024685,2]
[424701787,1781063472000,-151.0,0.00024685,2]
[424701785,1781063472000,-151.0,0.00024685,2]
[424701791,1781063472000,-151.0,0.00024685,2]
[424701789,1781063472000,-151.0,0.00024685,2]
[424701793,1781063472000,-151.0,0.00024685,2]
[424701792,1781063472000,-151.0,0.00024685,2]
[424701795,1781063472000,-2000.0,0.00024704,2]
[424701801,1781063472000,-151.0,0.00024716,2]
[424701802,1781063472000,-151.0,0.00024716,2]
[424701803,1781063472000,-151.0,0.00024717,2]
[424701794,1781063472000,-156358.0,0.000247,2]
[424701826,1781063472000,-400.0,0.00024837,2]
[424701875,1781063472000,-170.16071377,0.00025,2]
[424701831,1781063472000,-400.0,0.00024852,2]
[424701854,1781063472000,-500.0,0.0002497,2]
[424701857,1781063472000,-700.0,0.0002497,2]
[424701856,1781063472000,-1348.07301813,0.0002497,2]
[424701858,1781063472000,-403.0,0.00024971,2]
[424701859,1781063472000,-360.0,0.00024979,2]
[424701860,1781063472000,-400.0,0.00024983,2]
[424701863,1781063472000,-1376222.60029888,0.00025,2]
[424701864,1781063472000,-323.0,0.00025,2]
[424701861,1781063472000,-383.0,0.00024988,2]
[424701862,1781063472000,-169.929416,0.00024997,7]
[424701853,1781063472000,-400.0,0.00024968,2]
[424701866,1781063472000,-211.01386437,0.00025,2]
[424701870,1781063472000,-621.14568776,0.00025,2]
[424701871,1781063472000,-3094.98682466,0.00025,2]
[424701868,1781063472000,-2000.0,0.00025,2]
[424701869,1781063472000,-540.0,0.00025,2]
[424701873,1781063472000,-40707.29858851,0.00025,7]
[424701872,1781063472000,-7249.81914155,0.00025,2]
[424701874,1781063472000,-2237.80954421,0.00025,2]
[424701876,1781063472000,-777.45444713,0.00025,7]
[424701877,1781063472000,-1137.63610222,0.00025,2]
[424701825,1781063472000,-400.0,0.0002483,2]
[424701867,1781063472000,-1815.20592334,0.00025,2]
[424701855,1781063472000,-500.0,0.0002497,2]
[424701865,1781063472000,-1132.83488844,0.00025,2]
[424701851,1781063472000,-423.0,0.00024946,2]
[424701852,1781063472000,-388.0,0.00024951,2]
[424701829,1781063472000,-391.0,0.00024847,2]
[424701827,1781063472000,-400.0,0.00024843,2]
[424701832,1781063472000,-388.0,0.00024861,2]
[424701830,1781063472000,-400.0,0.00024848,2]
[424701828,1781063472000,-400.0,0.00024847,2]
[424701833,1781063472000,-200.0,0.00024867,2]
[424701835,1781063472000,-241.6875,0.00024879,2]
[424701836,1781063472000,-233.5188934,0.00024879,2]
[424701837,1781063472000,-400.0,0.0002488,2]
[424701838,1781063472000,-163.0,0.0002488,5]
[424701840,1781063472000,-388.0,0.00024888,2]
[424701834,1781063472000,-423.0,0.00024873,2]
[424701843,1781063472000,-152.0,0.0002491,7]
[424701848,1781063472000,-388.0,0.00024941,2]
[424701849,1781063472000,-391.0,0.00024942,2]
[424701846,1781063472000,-400.0,0.00024929,2]
[424701845,1781063472000,-391.0,0.00024918,2]
[424701847,1781063472000,-403.0,0.00024936,2]
[424701850,1781063472000,-388.0,0.00024943,2]
[424701841,1781063472000,-397.0,0.00024891,2]
[424701844,1781063472000,-391.0,0.00024911,2]
[424701839,1781063472000,-166.0,0.0002488,5]
[424701842,1781063472000,-152.0,0.0002491,22]
[424701918,1781063473000,-239.344721,0.00025,2]
[424701901,1781063473000,-862.799608,0.00025,2]
[424701908,1781063473000,-455.373624,0.00025,2]
[424701911,1781063473000,-455.373624,0.00025,2]
[424701909,1781063473000,-455.373624,0.00025,2]
[424701910,1781063473000,-455.373624,0.00025,2]
[424701913,1781063473000,-151.0,0.00025,2]
[424701914,1781063473000,-151.0,0.00025,2]
[424701916,1781063473000,-239.344721,0.00025,2]
[424701917,1781063473000,-239.344721,0.00025,2]
[424701915,1781063473000,-239.344721,0.00025,2]
[424701923,1781063473000,-200.0,0.00025,10]
[424701934,1781063473000,-1025.938432,0.00025,2]
[424701921,1781063473000,-2528.67333232,0.00025,2]
[424701919,1781063473000,-151.0,0.00025,2]
[424701922,1781063473000,-5259.416845,0.00025,2]
[424701925,1781063473000,-5259.416845,0.00025,2]
[424701926,1781063473000,-477.384432,0.00025,2]
[424701924,1781063473000,-477.384432,0.00025,2]
[424701927,1781063473000,-5259.416845,0.00025,2]
[424701928,1781063473000,-5259.416845,0.00025,2]
[424701931,1781063473000,-2325.09639127,0.00025,2]
[424701929,1781063473000,-477.384432,0.00025,2]
[424701930,1781063473000,-477.384432,0.00025,2]
[424701907,1781063473000,-253.626942,0.00025,2]
[424701920,1781063473000,-151.0,0.00025,2]
[424701905,1781063473000,-253.626942,0.00025,2]
[424701880,1781063473000,-150.0,0.00025,2]
[424701903,1781063473000,-862.799608,0.00025,2]
[424701878,1781063473000,-150.0,0.00025,2]
[424701879,1781063473000,-12949.30862208,0.00025,2]
[424701932,1781063473000,-195.042,0.00025,12]
[424701881,1781063473000,-7553.53196973,0.00025,2]
[424701882,1781063473000,-68142.43497419,0.00025,2]
[424701883,1781063473000,-910.35,0.00025,7]
[424701885,1781063473000,-2496.67172888,0.00025,2]
[424701886,1781063473000,-4573.56207833,0.00025,2]
[424701884,1781063473000,-722.0,0.00025,2]
[424701887,1781063473000,-849.76701402,0.00025,2]
[424701889,1781063473000,-894.65877664,0.00025,2]
[424701891,1781063473000,-3611.59822993,0.00025,2]
[424701893,1781063473000,-1370.83941554,0.00025,2]
[424701890,1781063473000,-697.07711541,0.00025,2]
[424701892,1781063473000,-819.76624426,0.00025,2]
[424701896,1781063473000,-151.0,0.00025,2]
[424701900,1781063473000,-151.0,0.00025,2]
[424701897,1781063473000,-153.279239,0.00025,2]
[424701894,1781063473000,-382.52135884,0.00025,2]
[424701895,1781063473000,-151.0,0.00025,2]
[424701898,1781063473000,-151.0,0.00025,2]
[424701899,1781063473000,-862.799608,0.00025,2]
[424701902,1781063473000,-862.799608,0.00025,2]
[424701912,1781063473000,-151.0,0.00025,2]
[424701904,1781063473000,-253.626942,0.00025,2]
[424701906,1781063473000,-253.626942,0.00025,2]
[424701933,1781063473000,-1025.938432,0.00025,2]
[424701888,1781063473000,-2191.9981003,0.00025,2]
[424701937,1781063473000,-163.944773,0.00025,2]
[424701965,1781063473000,-182.33,0.00025,2]
[424701967,1781063473000,-556.403067,0.00025,2]
[424701968,1781063473000,-556.403067,0.00025,2]
[424701971,1781063473000,-151.0,0.00025,2]
[424701981,1781063473000,-531.33,0.00025073,7]
[424701977,1781063473000,-391.0,0.00025041,2]
[424701970,1781063473000,-556.403067,0.00025,2]
[424701974,1781063473000,-278.519438,0.00025,2]
[424701980,1781063473000,-1196.28,0.00025073,7]
[424701972,1781063473000,-556.403064,0.00025,2]
[424701975,1781063473000,-391.0,0.00025012,2]
[424701973,1781063473000,-151.0,0.00025,2]
[424701959,1781063473000,-182.33,0.00025,2]
[424701979,1781063473000,-1059.2,0.00025073,7]
[424701978,1781063473000,-1147.66,0.00025049,2]
[424701982,1781063473000,-895.38,0.00025073,7]
[424701984,1781063473000,-150.0,0.000251,2]
[424701986,1781063473000,-150.0,0.000251,2]
[424701988,1781063473000,-150.0,0.000251,2]
[424701989,1781063473000,-150.0,0.000251,2]
[424701983,1781063473000,-6931.97,0.00025077,7]
[424701985,1781063473000,-150.0,0.000251,2]
[424701987,1781063473000,-150.0,0.000251,2]
[424701991,1781063473000,-150.0,0.000251,2]
[424701992,1781063473000,-300.0,0.000251,10]
[424701935,1781063473000,-1025.938432,0.00025,2]
[424701976,1781063473000,-391.0,0.00025014,2]
[424701964,1781063473000,-182.33,0.00025,2]
[424701990,1781063473000,-150.0,0.000251,2]
[424701966,1781063473000,-2551.85677581,0.00025,2]
[424701969,1781063473000,-151.0,0.00025,2]
[424701939,1781063473000,-163.944773,0.00025,2]
[424701938,1781063473000,-163.944773,0.00025,2]
[424701942,1781063473000,-151.0,0.00025,2]
[424701940,1781063473000,-163.944773,0.00025,2]
[424701936,1781063473000,-1025.938432,0.00025,2]
[424701941,1781063473000,-151.0,0.00025,2]
[424701945,1781063473000,-151.0,0.00025,2]
[424701946,1781063473000,-2680.313307,0.00025,2]
[424701944,1781063473000,-151.0,0.00025,2]
[424701948,1781063473000,-2680.313307,0.00025,2]
[424701947,1781063473000,-2680.313307,0.00025,2]
[424701949,1781063473000,-730.02486386,0.00025,2]
[424701943,1781063473000,-200.0,0.00025,2]
[424701950,1781063473000,-2680.313311,0.00025,2]
[424701962,1781063473000,-182.33,0.00025,2]
[424701963,1781063473000,-182.33,0.00025,2]
[424701961,1781063473000,-602.027524,0.00025,2]
[424701954,1781063473000,-602.027517,0.00025,2]
[424701958,1781063473000,-182.33,0.00025,2]
[424701960,1781063473000,-182.33,0.00025,2]
[424701951,1781063473000,-2000.0,0.00025,7]
[424701955,1781063473000,-182.33,0.00025,2]
[424701956,1781063473000,-182.33,0.00025,2]
[424701952,1781063473000,-602.027517,0.00025,2]
[424701953,1781063473000,-602.027517,0.00025,2]
[424701957,1781063473000,-182.33,0.00025,2]
[424702032,1781063474000,-202.70711956,0.00025704,2]
[424702028,1781063474000,-5530.0,0.000256,5]
[424702029,1781063474000,-200.0,0.0002564,2]
[424702033,1781063474000,-242.15909246,0.00025704,2]
[424702020,1781063474000,-151.0,0.00025539,2]
[424702024,1781063474000,-500.0,0.00025548,7]
[424702021,1781063474000,-151.0,0.00025539,2]
[424702022,1781063474000,-517.0398742,0.00025548,7]
[424702023,1781063474000,-700.0,0.00025548,7]
[424702027,1781063474000,-2664.0,0.000256,2]
[424702038,1781063474000,-290.3986294,0.00025704,2]
[424702037,1781063474000,-151.0,0.00025704,2]
[424702035,1781063474000,-200.0,0.00025704,2]
[424702031,1781063474000,-290.3986294,0.00025704,2]
[424702030,1781063474000,-310.078125,0.00025704,2]
[424702036,1781063474000,-2884.75459676,0.00025704,2]
[424702040,1781063474000,-19222.27,0.00025786,2]
[424702042,1781063474000,-1742.98,0.00025786,2]
[424702039,1781063474000,-152.0,0.00025771,25]
[424702041,1781063474000,-1206.46,0.00025786,2]
[424702043,1781063474000,-555.71,0.00025786,2]
[424702044,1781063474000,-1147.66,0.00025832,2]
[424702018,1781063474000,-231.21,0.00025539,2]
[424702034,1781063474000,-151.0,0.00025704,2]
[424702016,1781063474000,-151.0,0.00025539,2]
[424702007,1781063474000,-604.0,0.0002538,2]
[424702019,1781063474000,-151.0,0.00025539,2]
[424702045,1781063474000,-219.0,0.00025918,10]
[424701993,1781063474000,-310.078125,0.00025156,2]
[424702002,1781063474000,-151.0,0.00025156,2]
[424701994,1781063474000,-280.03725111,0.00025156,2]
[424702003,1781063474000,-280.03725111,0.00025156,2]
[424701995,1781063474000,-200.0,0.00025156,2]
[424701997,1781063474000,-152.72359966,0.00025156,2]
[424701996,1781063474000,-233.5188934,0.00025156,2]
[424701999,1781063474000,-151.0,0.00025156,2]
[424702001,1781063474000,-2781.82699784,0.00025156,2]
[424702000,1781063474000,-337.5791174,0.00025156,2]
[424701998,1781063474000,-200.0,0.00025156,2]
[424702004,1781063474000,-152.0,0.00025197,23]
[424702006,1781063474000,-150.0,0.000253,14]